bitfinex/quotes_ETHUSD_20240718
["timestamp","ask_amount","ask_price","bid_price","bid_amount"]
[1721316042415,2.93424,3408.1,3407.3,2.93486]
[1721316042626,2.93424,3408.1,3406.8,2.50917284]
[1721316042627,2.93472,3407.5,3406.8,2.50917284]
[1721316042778,2.93458,3407.7,3406.8,2.50917284]
[1721316043124,2.93589,3406.2,3405.1,0.1485243]
[1721316043278,2.93597,3406.1,3405.5,0.09052382]
[1721316043484,2.93554,3406.6,3405.5,0.09052382]
[1721316043710,2.4253,3407.0,3405.6,0.06100919]
[1721316043711,3.229114,3406.5,3405.6,0.06100919]
[1721316043934,0.293554,3406.5,3405.6,0.06100919]
[1721316044218,6.368,3407.1,3405.6,0.06100919]
[1721316044219,2.2781,3406.6,3405.6,0.06100919]
[1721316044426,2.2781,3406.6,3405.5,0.09052382]
[1721316044427,5.6461,3406.6,3405.5,0.09052382]
[1721316044583,2.93572,3406.4,3405.5,0.09052382]
[1721316044782,2.93583,3406.2,3405.5,0.09052382]
[1721316045004,3.55,3407.0,3405.5,0.09052382]
[1721316045231,2.93634,3405.6,3405.5,0.09052382]
[1721316045500,2.93591,3406.1,3405.5,0.09052382]
[1721316045833,2.2853,3406.3,3405.5,0.09052382]
[1721316045982,2.93625,3405.7,3405.5,0.09052382]
[1721316046307,5.87268,3405.6,3405.5,0.09052382]
[1721316046515,6.459948,3405.6,3405.5,0.09052382]
[1721316046831,3.368,3406.1,3403.9,2.2758]
[1721316047139,3.0,3406.4,3403.9,2.2758]
[1721316047140,2.93632,3405.7,3404.5,2.93726]
[1721316047426,2.93652,3405.4,3404.3,2.9374]
[1721316047593,2.93659,3405.3,3404.4,2.93735]
[1721316047798,2.93659,3405.3,3404.1,2.93755]
[1721316047799,2.93686,3405.0,3404.1,2.93755]
[1721316048106,2.93686,3405.0,3404.2,0.587535]
[1721316048283,2.93678,3405.1,3404.2,3.525065]
[1721316050828,2.93692,3405.0,3404.0,2.93771]
[1721316051014,2.93677,3405.1,3404.1,2.99849216]
[1721316051218,2.93703,3404.8,3404.1,0.06088216]
[1721316051533,2.93711,3404.7,3403.7,2.304]
[1721316051692,2.93703,3404.8,3404.2,0.06083294]
[1721316051891,2.93703,3404.8,3403.7,5.24195]
[1721316052276,0.587337,3405.1,3403.8,2.93788]
[1721316052277,2.93685,3405.0,3403.8,2.93788]
[1721316052550,2.93747,3404.3,3403.8,0.06102984]
[1721316052769,2.93757,3404.2,3403.8,0.06102984]
[1721316052946,2.93757,3404.2,3403.1,5.24241]
[1721316052947,3.368,3404.7,3403.1,2.304]
[1721316053117,5.8885,3404.6,3402.5,2.304]
[1721316053322,2.93777,3404.0,3403.2,0.06132529]
[1721316053533,3.231597,3403.9,3402.7,2.93883]
[1721316053772,0.293777,3403.9,3402.9,2.93858]
[1721316053962,0.293777,3403.9,3402.9,2.93865]
[1721316054174,5.3385,3404.6,3403.0,0.06142379]
[1721316054482,2.93775,3404.0,3403.0,2.93856]
[1721316054759,3.0,3404.6,3403.1,2.99979454]
[1721316054919,2.93746,3404.3,3403.3,2.93824]
[1721316055115,3.0,3404.6,3403.1,0.06137454]
[1721316055363,2.93756,3404.2,3403.4,0.0612268]
[1721316055670,0.6368,3404.5,3402.2,3.0539512]
[1721316055671,3.55,3404.1,3402.2,0.0539512]
[1721316055878,2.4775,3404.4,3403.0,2.93851]
[1721316055879,2.93772,3404.0,3403.0,2.93851]
[1721316056018,5.96488,3404.4,3403.0,2.93851]
[1721316056223,5.96488,3404.4,3403.1,0.06199966]
[1721316056224,6.897678,3404.3,3403.1,0.06199966]
[1721316056473,3.48754,3404.2,3403.1,0.06199966]
[1721316056757,3.960168,3404.3,3403.1,0.06199966]
[1721316056758,0.960168,3404.3,3403.1,0.06199966]
[1721316056962,3.57416,3404.5,3403.5,2.93813]
[1721316056963,0.6368,3404.5,3403.5,2.93813]
[1721316057122,0.6368,3404.5,3403.1,3.00044966]
[1721316057321,5.24873,3405.1,3403.6,0.06115075]
[1721316057322,2.93687,3405.0,3403.6,0.06115075]
[1721316057571,2.3119,3405.1,3403.0,2.3798]
[1721316057727,2.93708,3404.8,3403.7,0.06110151]
[1721316057930,2.93708,3404.8,3403.0,2.3798]
[1721316057931,2.93711,3404.7,3403.4,2.93821]
[1721316058260,2.93711,3404.7,3403.0,5.3183]
[1721316058261,2.93757,3404.2,3403.2,2.93834]
[1721316058562,2.93757,3404.2,3403.0,5.31837]
[1721316058563,0.587495,3404.1,3403.0,5.31837]
[1721316058769,0.587495,3404.1,3403.3,0.06126896]
[1721316058976,2.93738,3404.4,3403.1,0.06136746]
[1721316058977,2.93781,3403.9,3403.1,0.06136746]
[1721316059124,0.30431397,3404.0,3403.4,0.05913235]
[1721316059327,2.3065,3404.5,3402.2,2.9931712]
[1721316059328,2.3065,3404.5,3402.5,2.3546]
[1721316059524,3.0,3404.6,3402.5,2.3546]
[1721316059762,3.0,3404.6,3403.6,2.93806]
[1721316059763,0.3,3404.6,3403.6,2.93806]
[1721316059965,5.6587,3405.2,3403.6,2.93806]
[1721316060249,2.93721,3404.6,3403.7,0.05709457]
[1721316060456,0.30426923,3404.9,3402.5,2.3546]
[1721316060729,3.368,3405.2,3402.6,0.05763632]
[1721316060964,2.93738,3404.4,3403.3,2.93831]
[1721316061138,2.2907,3405.3,3402.6,0.05763632]
[1721316061139,0.587459,3404.3,3402.6,0.05763632]
[1721316061343,3.368,3404.7,3403.4,0.05724228]
[1721316061575,2.93786,3403.9,3402.9,2.93866]
[1721316061874,2.93757,3404.2,3402.5,2.3546]
[1721316061875,3.0,3404.2,3403.0,0.05743928]
[1721316062028,3.0,3404.2,3402.9,2.93865]
[1721316062029,2.93786,3403.9,3402.9,2.93865]
[1721316062230,2.93786,3403.9,3403.0,0.05743928]
[1721316062430,3.0,3404.2,3403.0,0.05743928]
[1721316062648,2.93685,3405.1,3403.4,2.93819]
[1721316062839,2.93711,3404.7,3403.8,2.93783]
[1721316063041,2.93686,3405.0,3403.9,0.0569961]
[1721316063329,2.93715,3404.7,3403.9,0.0569961]
[1721316063530,0.587409,3404.6,3403.9,0.0569961]
[1721316063842,2.93699,3404.9,3404.0,0.05694688]
[1721316064027,2.93699,3404.9,3404.0,2.99465688]
[1721316064028,2.93694,3404.9,3404.0,2.99465688]
[1721316064390,5.8077,3407.1,3404.0,0.05694688]
[1721316064663,2.4397,3407.1,3404.5,2.3063]
[1721316064883,2.93566,3406.4,3404.6,0.56743]
[1721316065040,0.24397,3407.0,3404.8,2.93694]
[1721316065041,2.93591,3406.1,3404.8,2.93694]
[1721316065240,3.17913,3407.0,3405.1,2.93676]
[1721316065437,3.17913,3407.0,3404.6,0.56743]
[1721316065438,2.93539,3406.7,3405.2,0.05627818]
[1721316065691,2.93548,3406.6,3405.3,2.93652]
[1721316065856,0.293548,3406.5,3405.3,0.05616558]
[1721316066177,2.93525,3406.9,3405.9,2.93601]
[1721316066565,2.93532,3406.8,3406.0,0.05581691]
[1721316066873,3.17911,3407.0,3405.8,2.93616]
[1721316067079,3.368,3407.6,3405.6,2.3109]
[1721316067080,2.93488,3407.3,3406.0,2.93597]
[1721316067326,2.93474,3407.5,3406.3,2.93572]
[1721316067477,2.93462,3407.6,3406.3,2.93572]
[1721316067679,2.93462,3407.6,3406.4,0.05552737]
[1721316067680,2.93487,3407.3,3406.4,0.05552737]
[1721316067917,2.9348,3407.4,3406.3,2.93573]
[1721316068132,2.93462,3407.6,3406.5,0.05541337]
[1721316068288,3.460702,3407.5,3406.4,0.05546253]
[1721316068490,2.93482,3407.4,3406.6,0.05536422]
[1721316068714,3.460692,3407.5,3406.5,0.05541337]
[1721316068917,0.525982,3407.5,3405.7,2.9362]
[1721316069217,0.525982,3407.5,3406.6,0.05503452]
[1721316069218,3.460682,3407.5,3406.6,0.05503452]
[1721316069392,0.525982,3407.5,3406.5,2.93555]
[1721316069589,0.525982,3407.5,3405.8,9.51449846]
[1721316069590,0.525982,3407.5,3406.6,0.05503452]
[1721316069822,3.460702,3407.5,3406.4,2.93559]
[1721316069977,3.460702,3407.5,3406.5,2.99060367]
[1721316070381,3.0,3407.4,3406.5,0.05508367]
[1721316070576,2.93508,3407.1,3405.9,5.4876039]
[1721316070876,3.0,3407.0,3406.2,2.93582]
[1721316071095,0.525982,3407.5,3406.7,2.93532]
[1721316071291,3.0,3408.0,3406.5,2.93548]
[1721316071292,5.93454,3407.7,3406.5,2.93548]
[1721316071531,5.93454,3407.7,3406.8,0.05489054]
[1721316071734,2.93462,3407.6,3406.6,0.05498884]
[1721316072045,3.0,3407.5,3406.7,0.05491906]
[1721316072198,3.0,3407.5,3406.6,2.93547]
[1721316072397,3.0,3407.5,3406.7,0.05491906]
[1721316072398,0.593462,3407.4,3406.7,0.05491906]
[1721316073303,0.593462,3407.4,3406.7,2.99028906]
[1721316073605,0.593462,3407.4,3406.8,2.93528]
[1721316073809,0.593462,3407.4,3406.9,0.05469756]
[1721316074004,3.0,3407.7,3406.9,0.05469756]
[1721316074351,3.0,3407.9,3405.7,2.93619]
[1721316074352,2.93544,3406.7,3405.7,2.93619]
[1721316074496,2.93539,3406.7,3405.6,5.24716]
[1721316074847,2.9353,3406.9,3405.9,2.93601]
[1721316075130,0.587036,3406.8,3405.7,2.93625]
[1721316075333,3.0,3406.9,3405.1,3.368]
[1721316075540,2.9358,3406.3,3405.0,5.26568]
[1721316075745,2.9358,3406.3,3405.3,2.93653]
[1721316076033,2.93561,3406.5,3405.4,2.93645]
[1721316076215,3.0,3406.4,3405.4,2.93645]
[1721316076421,3.0,3406.4,3405.5,2.93641]
[1721316076422,1.187115,3406.3,3405.5,2.93641]
[1721316076632,3.0,3406.7,3405.0,2.3289]
[1721316076853,3.0,3407.0,3405.5,2.93642]
[1721316077010,2.93484,3407.4,3405.3,2.93653]
[1721316077011,2.93484,3407.4,3406.4,2.93558]
[1721316077206,5.34126,3407.8,3406.7,2.93537]
[1721316077404,5.34126,3407.8,3406.0,2.93594]
[1721316077405,2.93438,3407.9,3406.6,2.93547]
[1721316077605,0.293438,3407.8,3406.4,2.93558]
[1721316077902,2.93485,3407.4,3405.7,2.2707]
[1721316078112,2.93485,3407.4,3406.5,2.93555]
[1721316078445,2.93501,3407.2,3405.7,2.2707]
[1721316078739,0.30496197,3408.2,3405.7,2.2707]
[1721316078740,2.93486,3407.4,3406.4,2.93564]
[1721316078923,2.93463,3407.6,3406.5,2.93554]
[1721316079243,3.52162,3407.5,3406.5,2.93554]
[1721316079442,2.93471,3407.5,3406.5,2.93554]
[1721316079615,2.93462,3407.6,3406.6,2.93541]
[1721316079941,2.9347,3407.5,3406.6,2.93541]
[1721316080299,2.93484,3407.4,3406.7,0.0529719]
[1721316080499,3.528364,3407.3,3406.7,0.0529719]
[1721316080813,3.528364,3407.3,3406.3,2.93569]
[1721316080814,0.593484,3407.3,3406.5,2.93549]
[1721316081019,0.593484,3407.3,3406.6,2.93546]
[1721316081327,0.593484,3407.3,3406.7,2.9883619]
[1721316082028,0.593484,3407.3,3406.9,2.93515]
[1721316082258,3.0,3407.9,3406.9,2.93521]
[1721316082526,3.0,3407.9,3407.0,0.05282447]
[1721316082935,2.93435,3408.0,3407.0,0.05282447]
[1721316082936,2.9345,3407.8,3407.0,0.05282447]
[1721316083135,5.93441,3407.9,3407.0,0.05282447]
[1721316083439,6.821301,3407.8,3407.0,0.05282447]
[1721316083997,6.821301,3407.8,3407.1,2.935]
[1721316083998,3.886861,3407.8,3407.1,2.935]
[1721316084201,2.93398,3408.4,3407.3,2.93482]
[1721316084439,2.93398,3408.4,3407.4,0.05257656]
[1721316084609,2.93398,3408.4,3407.4,2.98734656]
[1721316084610,3.0,3408.3,3407.4,2.98734656]
[1721316084809,2.93398,3408.4,3407.4,2.98734656]
[1721316085015,2.9345,3407.8,3407.4,0.05257656]
[1721316085230,0.29345,3407.7,3406.9,2.9352]
[1721316085418,0.29345,3407.7,3407.0,2.93511]
[1721316085619,0.29345,3407.7,3407.1,2.93502]
[1721316085948,0.29345,3407.7,3405.9,2.93601]
[1721316085949,2.93484,3407.4,3407.2,0.05267482]
[1721316086160,2.93465,3407.6,3407.2,0.05267482]
[1721316086356,2.93444,3407.8,3406.7,2.93537]
[1721316086521,3.0,3407.7,3407.3,0.05262569]
[1721316086873,3.0,3407.7,3407.4,0.05257656]
[1721316087037,2.2768,3408.5,3406.9,2.9352]
[1721316087214,4.126056,3408.4,3407.5,0.05252744]
[1721316087414,4.126056,3408.4,3407.2,2.93494]
[1721316087653,4.126056,3408.4,3407.3,0.05256113]
[1721316088169,3.576056,3408.4,3407.3,2.98742113]
[1721316088821,0.576056,3408.4,3407.3,0.05256113]
[1721316089050,2.93346,3409.0,3407.8,2.93435]
[1721316089261,2.93354,3408.9,3407.5,2.93463]
[1721316089461,2.9337,3408.7,3407.9,0.05219743]
[1721316089771,2.3495,3409.1,3406.9,2.93518]
[1721316089915,3.53167979,3409.3,3405.6,2.9363]
[1721316089916,2.93397,3408.4,3406.5,2.93548]
[1721316090256,2.93397,3408.4,3406.2,2.3799]
[1721316090257,2.93476,3407.5,3406.4,2.93562]
[1721316090419,0.531897,3408.3,3406.6,0.05283615]
[1721316090420,2.385,3407.9,3406.6,0.05283615]
[1721316090620,2.93503,3407.2,3406.6,0.05283615]
[1721316090933,2.93478,3407.5,3405.7,2.3799]
[1721316091135,2.93463,3407.6,3406.5,2.93553]
[1721316091334,2.93463,3407.6,3406.6,2.93546]
[1721316091335,0.348463,3407.5,3406.6,2.93546]
[1721316091655,0.348463,3407.5,3406.6,0.05285962]
[1721316092032,2.93486,3407.4,3406.6,0.05285962]
[1721316092221,0.348463,3407.5,3406.7,2.93539]
[1721316092424,2.93485,3407.4,3406.7,0.0528633]
[1721316092622,3.348463,3407.5,3405.7,2.3799]
[1721316092623,0.6283313,3407.3,3406.1,2.93584]
[1721316092829,0.6283313,3407.3,3406.6,2.93542]
[1721316093063,2.93503,3407.2,3406.7,0.05286917]
[1721316093233,2.9353,3406.8,3405.8,2.93612]
[1721316093580,2.9353,3406.8,3405.9,2.98932245]
[1721316093861,0.29353,3406.7,3405.9,0.05326245]
[1721316094078,0.6283313,3407.3,3405.3,2.93658]
[1721316094079,2.93579,3406.3,3405.3,2.93658]
[1721316094221,2.93574,3406.3,3405.1,2.3762]
[1721316094567,3.0,3406.2,3404.4,2.9373]
[1721316094863,2.93625,3405.8,3404.6,2.93719]
[1721316095079,2.93648,3405.5,3404.6,2.93719]
[1721316095288,2.93703,3404.8,3404.7,0.05389234]
[1721316095561,2.93735,3404.5,3403.3,5.36021]
[1721316095878,2.93735,3404.5,3403.4,2.99270226]
[1721316095879,2.93737,3404.4,3403.4,2.99270226]
[1721316096052,2.93747,3404.3,3403.4,2.99270226]
[1721316096361,2.93747,3404.3,3403.4,0.05453226]
[1721316096362,2.93746,3404.3,3403.4,0.05453226]
[1721316096723,0.587451,3404.5,3402.0,0.00191148]
[1721316096724,2.93827,3403.4,3402.0,0.00191148]
[1721316097055,3.0,3404.2,3402.0,2.94129148]
[1721316097056,2.93854,3403.1,3402.0,2.94129148]
[1721316097222,3.232227,3403.3,3402.1,2.93934]
[1721316097422,2.93852,3403.1,3402.1,2.93934]
[1721316097623,0.293827,3403.3,3402.0,0.00191148]
[1721316097935,0.293827,3403.3,3402.4,2.93908]
[1721316098141,0.293827,3403.3,3402.0,0.00191148]
[1721316098142,2.986751,3404.5,3402.5,2.77470312]
[1721316098320,3.0,3404.4,3403.0,2.93856]
[1721316098671,2.93738,3404.4,3403.1,2.93849]
[1721316098822,2.93738,3404.4,3402.7,2.93883]
[1721316099027,2.93738,3404.4,3402.5,2.77470312]
[1721316099028,2.93772,3404.0,3402.5,2.77470312]
[1721316099255,3.0,3404.3,3403.1,2.93849]
[1721316099454,3.0,3404.3,3403.5,2.93808]
[1721316099455,0.53993,3404.3,3403.5,2.93808]
[1721316099663,2.93707,3404.8,3403.1,0.293849]
[1721316099871,2.3525,3405.2,3403.8,2.93788]
[1721316099872,2.93687,3405.0,3403.8,2.93788]
[1721316100167,2.3525,3405.2,3403.3,2.93829]
[1721316100375,0.89768969,3406.4,3404.2,2.93752]
[1721316100376,2.3525,3406.4,3404.2,2.93752]
[1721316100540,2.93653,3405.4,3404.1,2.93762]
[1721316100725,0.293653,3405.3,3404.1,2.93762]
[1721316101080,2.93668,3405.2,3404.0,2.9377]
[1721316101232,5.525543,3405.3,3404.0,2.9377]
[1721316101435,2.588953,3405.3,3403.4,5.28846]
[1721316101760,2.93709,3404.8,3403.7,2.93796]
[1721316101979,2.93709,3404.8,3403.1,3.232279]
[1721316101980,0.2588953,3405.2,3403.3,2.93831]
[1721316102308,2.93731,3404.5,3403.1,2.93848]
[1721316102442,0.2588953,3405.2,3402.9,2.378]
[1721316102443,2.93747,3404.3,3402.9,2.378]
[1721316102641,0.2588953,3405.2,3402.5,0.29930312]
[1721316102642,2.93756,3404.2,3402.5,0.29930312]
[1721316102863,0.55,3405.1,3402.3,2.3799]
[1721316102864,3.231386,3404.1,3402.8,2.93869]
[1721316103072,3.231386,3404.1,3402.3,2.3799]
[1721316103073,2.93806,3403.7,3402.3,2.3799]
[1721316103226,3.55,3404.0,3402.3,5.31902]
[1721316103227,2.93807,3403.6,3402.3,5.31902]
[1721316103430,6.48819,3403.5,3402.3,2.93918]
[1721316103659,6.48819,3403.5,3402.4,2.93908]
[1721316103878,3.587069,3403.4,3402.4,2.93908]
[1721316104070,2.93843,3403.2,3402.2,0.0539512]
[1721316104381,3.587069,3403.4,3402.4,2.93905]
[1721316104528,2.93844,3403.2,3402.2,0.0539512]
[1721316104733,0.6525509,3403.1,3402.2,0.0539512]
[1721316105229,0.6525509,3403.1,3402.2,2.9931912]
[1721316105773,0.6525509,3403.1,3402.3,2.93918]
[1721316106080,0.6525509,3403.1,3402.2,0.0539512]
[1721316106233,0.55,3403.0,3402.2,0.0539512]
[1721316106437,2.93918,3402.3,3402.2,0.0539512]
[1721316106970,5.93918,3402.3,3402.2,0.0539512]
[1721316107172,2.93936,3402.1,3402.0,0.00191148]
[1721316107384,2.94009,3401.3,3401.1,0.005]
[1721316107581,2.93994,3401.5,3401.1,0.005]
[1721316107750,3.0,3401.4,3401.1,0.005]
[1721316108170,2.93949,3402.0,3401.1,0.005]
[1721316108470,3.0,3402.0,3401.2,0.05507719]
[1721316108689,2.93989,3401.5,3401.1,0.005]
[1721316108987,2.93972,3401.7,3401.3,0.05502788]
[1721316109166,0.9324426,3401.9,3401.3,0.05502788]
[1721316109167,2.93996,3401.4,3401.3,0.05502788]
[1721316109494,3.0,3401.8,3401.1,0.005]
[1721316109704,0.9324426,3401.9,3401.3,0.05502788]
[1721316109861,0.38719026,3401.8,3401.1,0.005]
[1721316110067,3.3219826,3401.9,3401.1,0.005]
[1721316110277,3.0,3401.8,3401.2,0.05507719]
[1721316111477,2.93979,3401.6,3401.2,0.05507719]
[1721316111795,5.93962,3401.8,3401.2,0.05507719]
[1721316111796,3.827821,3401.5,3401.2,0.05507719]
[1721316111961,2.94005,3401.3,3401.2,0.05507719]
[1721316112163,2.94005,3401.3,3401.2,0.00799936]
[1721316112364,2.94005,3401.3,3400.0,2.41853585]
[1721316112365,2.2678,3401.2,3400.0,2.41853585]
[1721316112569,2.94073,3400.6,3400.0,2.41853585]
[1721316112787,5.8178,3401.2,3400.1,0.05431905]
[1721316112788,0.588126,3400.5,3400.1,0.05431905]
[1721316112964,3.0,3401.1,3400.1,0.05431905]
[1721316113301,2.94054,3400.8,3400.1,0.05431905]
[1721316113589,3.0,3400.7,3400.1,0.05431905]
[1721316113795,2.94039,3401.0,3400.1,0.05431905]
[1721316114000,3.0,3400.9,3400.1,0.05431905]
[1721316114168,0.3,3400.9,3400.1,0.05431905]
[1721316114371,2.94098,3400.3,3400.1,0.05431905]
[1721316114549,2.94081,3400.5,3400.1,0.05431905]
[1721316114747,2.941,3400.2,3400.1,0.05431905]
[1721316114949,5.941,3400.2,3400.1,0.05431905]
[1721316115177,6.829199,3400.2,3400.1,0.05431905]
[1721316115393,9.770199,3400.2,3400.1,0.05431905]
[1721316115691,6.829199,3400.2,3400.1,0.05431905]
[1721316116206,0.30639863,3402.6,3400.1,0.05431905]
[1721316116207,2.94024,3401.1,3400.1,2.99537905]
[1721316116402,2.4212,3401.3,3400.1,0.05431905]
[1721316116567,2.94045,3400.9,3400.1,0.05431905]
[1721316116767,2.4212,3401.3,3400.1,0.05431905]
[1721316116768,2.94057,3400.7,3400.1,0.05431905]
[1721316116981,2.941,3400.2,3400.1,0.05431905]
[1721316117155,3.234637,3400.7,3400.1,0.05431905]
[1721316117593,2.94003,3401.4,3400.1,0.05431905]
[1721316117594,2.94024,3401.1,3400.1,0.05431905]
[1721316117794,2.94011,3401.3,3400.1,2.99539905]
[1721316118105,2.94031,3401.0,3400.1,0.05431905]
[1721316118301,0.55,3401.2,3400.1,0.05431905]
[1721316118503,0.55,3401.2,3400.1,2.99539905]
[1721316118924,0.55,3401.3,3400.2,2.941]
[1721316119101,6.023,3402.0,3400.7,2.94051]
[1721316119102,2.93955,3401.9,3400.7,2.94051]
[1721316119295,0.835193,3401.8,3400.8,2.99390562]
[1721316119502,0.835193,3401.8,3400.9,2.94038]
[1721316119748,0.835193,3401.8,3401.0,0.05340699]
[1721316119905,3.55,3402.7,3401.1,2.94016]
[1721316119906,2.93944,3402.1,3401.1,2.94016]
[1721316120092,2.93934,3402.2,3401.2,0.05330837]
[1721316120447,2.93934,3402.2,3401.2,2.99343837]
[1721316120732,2.93928,3402.2,3401.2,0.05330837]
[1721316120933,0.587841,3402.1,3401.2,0.05330837]
[1721316121234,2.93921,3402.3,3401.3,2.94004]
[1721316121395,2.93911,3402.4,3400.6,2.94061]
[1721316121598,2.93911,3402.4,3401.4,0.05320976]
[1721316121901,2.93911,3402.4,3401.5,0.05316046]
[1721316121902,2.93936,3402.1,3401.5,0.05316046]
[1721316122105,2.93919,3402.3,3401.2,2.94013]
[1721316122304,0.843919,3402.2,3401.3,0.05325906]
[1721316122512,2.9395,3402.0,3401.3,0.05325906]
[1721316122836,2.93997,3401.4,3400.2,2.94099]
[1721316122995,2.94019,3401.2,3400.2,2.94099]
[1721316123198,5.87964,3401.6,3400.5,2.94073]
[1721316123546,2.93948,3402.0,3400.0,4.72473585]
[1721316123547,2.93946,3402.0,3400.0,4.72473585]
[1721316123859,2.93946,3402.0,3400.0,2.41853585]
[1721316123860,2.94062,3400.7,3400.0,2.41853585]
[1721316124068,2.94079,3400.5,3400.0,2.41853585]
[1721316124221,2.94066,3400.6,3400.0,2.41853585]
[1721316124415,2.94058,3400.7,3400.0,2.41853585]
[1721316124761,0.294058,3400.7,3400.0,2.41853585]
[1721316124961,2.94074,3400.5,3400.0,2.41853585]
[1721316125253,3.234628,3400.7,3400.0,2.41853585]
[1721316125254,2.94084,3400.4,3400.0,2.41853585]
[1721316125455,2.941,3400.2,3400.1,0.05369022]
[1721316125662,5.882,3400.2,3400.1,0.05369022]
[1721316125845,6.4702,3400.2,3400.1,0.05369022]
[1721316126044,7.0202,3400.2,3400.1,0.05369022]
[1721316126364,9.9612,3400.2,3400.1,0.05369022]
[1721316126715,5.88216,3400.1,3400.0,2.41853585]
[1721316126922,3.49108,3400.1,3400.0,2.41853585]
[1721316127155,3.52925,3400.2,3400.0,2.41853585]
[1721316127632,0.5882,3400.2,3400.1,0.05377418]
[1721316127831,0.294058,3400.7,3400.0,2.41853585]
[1721316128118,5.9975,3401.3,3400.1,0.05376976]
[1721316128119,2.94084,3400.4,3400.1,0.05376976]
[1721316128349,0.55,3400.6,3400.1,0.05376976]
[1721316128521,2.9408,3400.5,3400.1,0.05376976]
[1721316128718,5.94028,3401.1,3400.1,0.05376976]
[1721316128719,2.94031,3401.0,3400.1,0.05376976]
[1721316129021,2.94042,3400.9,3400.1,0.05376976]
[1721316129246,2.9405,3400.8,3400.1,0.05376976]
[1721316129434,0.588073,3400.9,3400.1,0.05376976]
[1721316129435,2.94088,3400.4,3400.1,0.05376976]
[1721316129633,2.94088,3400.4,3400.1,0.0536777]
[1721316129836,2.94069,3400.6,3400.1,0.0536777]
[1721316130045,0.588073,3400.9,3400.1,0.0536777]
[1721316130360,2.941,3400.2,3400.1,0.0536777]
[1721316130864,2.94058,3400.7,3400.1,0.0536777]
[1721316131036,2.94081,3400.5,3400.1,0.0536777]
[1721316131233,2.94095,3400.3,3400.1,0.0536777]
[1721316131446,2.941,3400.2,3400.1,0.0536777]
[1721316131757,3.529195,3400.2,3400.1,0.0536777]
[1721316131925,6.470195,3400.2,3400.1,0.0536777]
[1721316132368,3.529195,3400.2,3400.1,0.0536777]
[1721316132521,3.0,3400.8,3400.1,0.0536777]
[1721316132522,2.94056,3400.8,3400.1,0.0536777]
[1721316132723,2.94017,3401.2,3400.1,0.0536777]
[1721316133034,2.93999,3401.4,3400.5,2.94073]
[1721316133237,2.93982,3401.6,3400.5,2.94073]
[1721316133420,2.93959,3401.9,3400.9,2.94034]
[1721316133620,0.3882464,3401.8,3400.9,2.94034]
[1721316133822,0.3882464,3401.8,3401.0,0.05158551]
[1721316134161,2.93921,3402.3,3401.0,0.05158551]
[1721316134363,2.93888,3402.7,3401.7,2.93965]
[1721316134523,2.93861,3403.0,3401.8,2.9396]
[1721316134724,2.9394,3402.1,3400.9,2.94035]
[1721316135091,3.55,3403.3,3401.5,2.93987]
[1721316135216,2.93901,3402.5,3401.5,2.93987]
[1721316135421,2.93872,3402.9,3401.6,2.9909923]
[1721316135659,2.93872,3402.9,3401.6,0.0512823]
[1721316135876,2.93853,3403.1,3401.6,0.0512823]
[1721316136034,0.355,3403.2,3401.6,0.0512823]
[1721316136231,2.93964,3401.8,3400.8,2.94041]
[1721316136442,2.93976,3401.7,3400.7,5.41226]
[1721316136646,2.93945,3402.0,3401.0,2.9403]
[1721316136862,2.93911,3402.4,3400.8,0.05167676]
[1721316137064,2.93887,3402.7,3401.1,0.05152882]
[1721316137238,2.93868,3402.9,3401.9,2.93951]
[1721316137436,2.93876,3402.8,3401.8,2.93961]
[1721316137632,2.93868,3402.9,3401.9,2.99060443]
[1721316137837,2.93868,3402.9,3402.0,2.93943]
[1721316138033,3.622832,3403.1,3402.1,2.93936]
[1721316138034,2.9385,3403.1,3402.1,2.93936]
[1721316138347,2.9385,3403.1,3402.1,2.99039586]
[1721316138573,0.355,3403.2,3402.1,2.99038586]
[1721316138734,2.93781,3403.9,3402.4,2.93909]
[1721316138952,2.93794,3403.8,3402.7,2.93881]
[1721316139173,0.587575,3403.7,3402.6,2.93887]
[1721316139383,0.587575,3403.7,3402.9,2.93866]
[1721316139582,2.93776,3404.0,3402.9,2.93866]
[1721316139748,2.9376,3404.2,3403.1,2.93849]
[1721316139953,2.93747,3404.3,3403.2,2.93837]
[1721316140287,5.28054,3405.4,3403.2,0.05049394]
[1721316140447,2.93761,3404.2,3403.2,0.05049394]
[1721316140781,0.293761,3404.1,3403.2,2.98886394]
[1721316140985,2.93722,3404.6,3403.4,2.93817]
[1721316141201,2.93641,3405.6,3403.2,0.05049394]
[1721316141202,2.93701,3404.9,3403.8,2.93782]
[1721316141344,2.93655,3405.4,3403.6,2.93805]
[1721316141550,2.93608,3405.9,3403.9,0.05014927]
[1721316141890,2.93608,3405.9,3403.7,0.05024773]
[1721316141891,2.93703,3404.8,3403.7,0.05024773]
[1721316142188,2.93703,3404.8,3403.0,2.2863]
[1721316142189,2.93765,3404.1,3403.8,0.0501985]
[1721316142403,2.93733,3404.5,3403.8,0.0501985]
[1721316142559,2.9372,3404.6,3403.3,2.93831]
[1721316142765,2.9372,3404.6,3403.0,2.2863]
[1721316142766,0.29372,3404.5,3403.9,0.04968589]
[1721316142949,0.29372,3404.5,3403.5,2.93814]
[1721316143260,0.29372,3404.5,3403.0,2.2863]
[1721316143261,2.93648,3405.5,3404.0,0.04963519]
[1721316143460,2.93702,3404.9,3403.8,2.93786]
[1721316143662,2.93702,3404.9,3404.1,0.04962859]
[1721316143990,2.93677,3405.1,3404.2,0.04957937]
[1721316144516,3.457718,3405.8,3403.0,2.2863]
[1721316144517,0.521478,3405.8,3403.5,2.9381]
[1721316144661,2.93606,3406.0,3403.5,0.29381]
[1721316145001,2.93704,3404.8,3403.9,2.93774]